bitfinex/quotes_BTCUSD_20241013
["timestamp","ask_amount","ask_price","bid_price","bid_amount"]
[1728840543246,0.002,62880.0,62879.0,0.159035]
[1728840543875,0.002,62878.0,62877.0,0.262939]
[1728840544091,0.002,62878.0,62877.0,0.18204]
[1728840544361,0.002819,62877.0,62876.0,0.023]
[1728840546247,0.002819,62877.0,62876.0,0.028]
[1728840546668,0.002819,62877.0,62876.0,0.031]
[1728840547510,0.002819,62877.0,62876.0,0.023]
[1728840547719,0.000819,62877.0,62876.0,0.182043]
[1728840547935,0.000819,62877.0,62876.0,0.18522351]
[1728840548152,0.000819,62877.0,62876.0,0.182043]
[1728840548568,0.000819,62877.0,62876.0,0.18522351]
[1728840549205,0.000819,62877.0,62876.0,0.18622351]
[1728840549648,0.000819,62877.0,62876.0,0.186043]
[1728840549855,0.000819,62877.0,62876.0,0.183043]
[1728840550067,0.000819,62877.0,62876.0,0.182043]
[1728840550286,0.000819,62877.0,62876.0,0.187043]
[1728840550496,0.000819,62877.0,62876.0,0.190043]
[1728840550729,0.000819,62877.0,62876.0,0.35444752]
[1728840550946,0.000819,62877.0,62876.0,0.35126701]
[1728840554813,0.002819,62877.0,62876.0,0.35126701]
[1728840555028,0.000819,62877.0,62876.0,0.35126701]
[1728840556334,0.000819,62877.0,62876.0,0.031]
[1728840556335,0.002819,62877.0,62876.0,0.031]
[1728840556561,0.161859,62877.0,62876.0,0.008]
[1728840560088,0.161859,62877.0,62872.0,0.190962]
[1728840560305,0.002,62873.0,62872.0,0.37518601]
[1728840561389,0.159859,62877.0,62872.0,0.37518601]
[1728840561601,0.002,62873.0,62872.0,0.37518601]
[1728840562485,0.159859,62877.0,62874.0,0.159048]
[1728840562486,0.002,62875.0,62874.0,0.159048]
[1728840562700,0.002,62875.0,62873.0,0.18205]
[1728840564449,0.002,62875.0,62873.0,0.19005]
[1728840567580,0.002,62874.0,62873.0,0.031]
[1728840568272,0.002,62874.0,62873.0,0.008]
[1728840568484,0.241148,62874.0,62873.0,0.008]
[1728840569386,0.241148,62874.0,62873.0,0.003]
[1728840569599,0.241148,62874.0,62869.0,0.023]
[1728840569600,0.002,62870.0,62869.0,0.023]
[1728840570715,0.002,62870.0,62869.0,0.026]
[1728840573194,0.002,62870.0,62869.0,0.027]
[1728840573848,0.002,62870.0,62869.0,0.18606]
[1728840576271,0.002,62870.0,62869.0,0.027]
[1728840577388,0.002,62870.0,62869.0,0.18606]
[1728840578319,0.002,62870.0,62869.0,0.027]
[1728840578976,0.002,62870.0,62869.0,0.004]
[1728840579427,0.002819,62870.0,62869.0,0.004]
[1728840581606,0.002819,62870.0,62869.0,0.16306]
[1728840582074,0.002819,62870.0,62869.0,0.004]
[1728840584611,0.161877,62870.0,62869.0,0.004]
[1728840587137,0.161877,62870.0,62864.0,0.03191]
[1728840587138,0.002,62865.0,62864.0,0.03191]
[1728840587580,0.002,62865.0,62863.0,0.023]
[1728840587806,0.002,62864.0,62863.0,0.182074]
[1728840588067,0.002,62863.0,62862.0,0.190987]
[1728840589903,0.002,62866.0,62863.0,0.159076]
[1728840590352,0.002,62865.0,62863.0,0.159076]
[1728840590824,0.002,62864.0,62863.0,0.159076]
[1728840591048,0.002,62865.0,62863.0,0.159076]
[1728840591277,0.002,62864.0,62863.0,0.162076]
[1728840591520,0.002,62864.0,62863.0,0.163076]
[1728840592410,0.002,62864.0,62863.0,0.001]
[1728840592626,0.161073,62864.0,62863.0,0.001]
[1728840592839,0.002,62864.0,62863.0,0.005]
[1728840593069,0.002,62861.0,62860.0,0.182082]
[1728840593567,0.0824,62867.0,62857.0,0.033548]
[1728840593568,0.002,62858.0,62857.0,0.033548]
[1728840594478,0.002,62858.0,62857.0,0.001638]
[1728840596322,0.002,62858.0,62857.0,0.005638]
[1728840596987,0.002,62858.0,62857.0,0.007638]
[1728840599664,0.002,62858.0,62857.0,0.003638]
[1728840599889,0.161088,62858.0,62857.0,0.004638]
[1728840600113,0.161088,62858.0,62857.0,0.005638]
[1728840600114,0.002,62858.0,62857.0,0.005638]
[1728840600344,0.002,62858.0,62857.0,0.002638]
[1728840600345,0.161088,62858.0,62857.0,0.002638]
[1728840600786,0.002,62858.0,62857.0,0.003638]
[1728840601237,0.161088,62858.0,62857.0,0.003638]
[1728840601456,0.002,62858.0,62857.0,0.003638]
[1728840602782,0.002,62858.0,62857.0,0.001638]
[1728840603010,0.002,62858.0,62857.0,0.002638]
[1728840603270,0.002,62858.0,62857.0,0.001638]
[1728840603494,0.003,62858.0,62857.0,0.001638]
[1728840603922,0.002,62858.0,62857.0,0.001638]
[1728840604368,0.004,62858.0,62857.0,0.001638]
[1728840605567,0.163088,62858.0,62857.0,0.001638]
[1728840606044,0.004,62858.0,62857.0,0.001638]
[1728840609160,0.163088,62858.0,62857.0,0.001638]
[1728840610300,0.27528526,62858.0,62857.0,0.001638]
[1728840610843,0.46308252,62858.0,62857.0,0.001638]
[1728840611033,0.45288526,62858.0,62857.0,0.001638]
[1728840611691,0.45088526,62858.0,62857.0,0.001638]
[1728840612123,0.45288526,62858.0,62857.0,0.001638]
[1728840613031,0.641846,62858.0,62857.0,0.001638]
[1728840613476,0.639846,62858.0,62857.0,0.001638]
[1728840613699,0.641846,62858.0,62857.0,0.001638]
[1728840613932,0.733746,62858.0,62857.0,0.001638]
[1728840614395,0.731746,62858.0,62857.0,0.001638]
[1728840614834,0.735746,62858.0,62857.0,0.001638]
[1728840615508,0.729746,62858.0,62857.0,0.001638]
[1728840615736,0.62454874,62858.0,62857.0,0.002638]
[1728840615989,0.48962199,62858.0,62857.0,0.002638]
[1728840620126,0.46470526,62858.0,62857.0,0.002638]
[1728840623031,0.48962163,62858.0,62857.0,0.002638]
[1728840629983,0.46470526,62858.0,62857.0,0.002638]
[1728840632377,0.61638439,62858.0,62857.0,0.002638]
[1728840633046,0.64130107,62858.0,62857.0,0.002638]
[1728840633996,0.48962194,62858.0,62857.0,0.002638]
[1728840637283,0.41202194,62858.0,62857.0,0.002638]
[1728840640180,0.38710526,62858.0,62857.0,0.002638]
[1728840643179,0.41202155,62858.0,62857.0,0.002638]
[1728840645312,0.41202155,62858.0,62857.0,0.001638]
[1728840649362,0.57339126,62858.0,62857.0,0.001638]
[1728840649986,0.54847497,62858.0,62857.0,0.001638]
[1728840651037,0.59623152,62858.0,62857.0,0.001638]
[1728840651461,0.59625344,62858.0,62857.0,0.001638]
[1728840651882,0.54847497,62858.0,62857.0,0.001638]
[1728840652564,1.14934623,62858.0,62857.0,0.001638]
[1728840652781,1.05383313,62858.0,62857.0,0.001638]
[1728840653018,1.00819624,62858.0,62857.0,0.001638]
[1728840653240,1.03111452,62858.0,62857.0,0.001638]
[1728840653450,1.02611452,62858.0,62857.0,0.000638]
[1728840654114,1.27011452,62858.0,62857.0,0.000638]
[1728840654354,1.27011452,62858.0,62857.0,0.001638]
[1728840654355,1.28411452,62858.0,62857.0,0.001638]
[1728840654568,1.27011452,62858.0,62857.0,0.000638]
[1728840655017,1.29411452,62858.0,62857.0,0.001638]
[1728840655274,1.29411452,62858.0,62841.0,0.24042122]
[1728840655275,0.261129,62842.0,62841.0,0.24042122]
[1728840655524,0.64674753,62842.0,62841.0,0.24042122]
[1728840655733,0.69454802,62842.0,62841.0,0.24042122]
[1728840655981,0.161144,62836.0,62835.0,0.001638]
[1728840656208,0.27334126,62836.0,62835.0,0.001638]
[1728840657980,0.27534126,62836.0,62835.0,0.001638]
[1728840658703,0.40235669,62836.0,62835.0,0.001638]
[1728840659925,0.50235669,62836.0,62835.0,0.001638]
[1728840663199,0.68850556,62836.0,62835.0,0.001638]
[1728840663429,0.76570556,62836.0,62835.0,0.001638]
[1728840669806,0.88290282,62836.0,62835.0,0.001638]
[1728840670023,0.95117796,62836.0,62835.0,0.001638]
[1728840670487,0.95317796,62836.0,62835.0,0.001638]
[1728840670698,0.94917796,62836.0,62835.0,0.001638]
[1728840670934,0.95817796,62836.0,62835.0,0.002638]
[1728840671145,0.95117796,62836.0,62835.0,0.001638]
[1728840671352,0.94517796,62836.0,62835.0,0.001638]
[1728840671564,0.94517796,62836.0,62835.0,0.002638]
[1728840671565,0.95917796,62836.0,62835.0,0.002638]
[1728840671780,0.97017796,62836.0,62835.0,0.002638]
[1728840672265,0.95917796,62836.0,62835.0,0.002638]
[1728840672690,0.97317796,62836.0,62835.0,0.002638]
[1728840673110,1.00010475,62836.0,62835.0,0.002638]
[1728840674956,0.99810475,62836.0,62835.0,0.002638]
[1728840675209,1.00010475,62836.0,62835.0,0.002638]
[1728840678326,1.25010475,62836.0,62835.0,0.002638]
[1728840679299,1.79768604,62836.0,62835.0,0.002638]
[1728840679548,1.79766819,62836.0,62835.0,0.002638]
[1728840679787,0.37836426,62827.0,62826.0,0.24042122]
[1728840680025,0.261167,62827.0,62826.0,0.24042122]
[1728840680251,0.261169,62826.0,62825.0,0.0992]
[1728840681476,0.273169,62826.0,62825.0,0.1002]
[1728840681719,0.5,62827.0,62824.0,0.159174]
[1728840681951,0.5,62827.0,62826.0,0.1787]
[1728840681952,0.602,62827.0,62826.0,0.1787]
[1728840682417,0.102,62827.0,62826.0,0.1787]
[1728840682711,0.261167,62827.0,62826.0,0.1787]
[1728840683399,0.266167,62827.0,62826.0,0.1787]
[1728840683628,0.268167,62827.0,62826.0,0.1787]
[1728840684428,0.009,62827.0,62826.0,0.1787]
[1728840684632,0.109,62827.0,62826.0,0.1787]
[1728840684852,0.268167,62827.0,62826.0,0.1787]
[1728840685059,0.263167,62827.0,62826.0,0.1787]
[1728840685469,0.266167,62827.0,62826.0,0.1787]
[1728840694730,0.161179,62822.0,62821.0,0.100838]
[1728840694966,0.27337626,62822.0,62821.0,0.001638]
[1728840696525,0.27637626,62822.0,62821.0,0.001638]
[1728840697410,0.37637626,62822.0,62821.0,0.001638]
[1728840698288,0.37737626,62822.0,62821.0,0.001638]
[1728840699161,0.37437626,62822.0,62821.0,0.001638]
[1728840699589,0.37337626,62822.0,62821.0,0.001638]
[1728840699793,0.38137626,62822.0,62821.0,0.001638]
[1728840699989,0.38737626,62822.0,62821.0,0.001638]
[1728840702906,0.275179,62822.0,62821.0,0.001638]
[1728840703124,0.30010954,62822.0,62821.0,0.001638]
[1728840706247,0.30010954,62822.0,62821.0,0.097838]
[1728840707449,0.014,62822.0,62821.0,0.177538]
[1728840707921,0.014,62822.0,62821.0,0.33672]
[1728840710569,0.014,62822.0,62821.0,0.177538]
[1728840711562,0.175179,62822.0,62821.0,0.177538]
[1728840713591,0.28737626,62822.0,62821.0,0.001638]
[1728840718756,0.42881533,62822.0,62821.0,0.001638]
[1728840719184,0.28737626,62822.0,62821.0,0.001638]
[1728840721887,0.27937626,62822.0,62821.0,0.001638]
[1728840722100,0.167179,62822.0,62821.0,0.001638]
[1728840722321,0.28237626,62822.0,62821.0,0.001638]
[1728840722539,0.28737626,62822.0,62821.0,0.001638]
[1728840722748,0.27837626,62822.0,62821.0,0.001638]
[1728840723179,0.28437626,62822.0,62821.0,0.001638]
[1728840723392,0.28637626,62822.0,62821.0,0.001638]
[1728840724387,0.59610846,62822.0,62821.0,0.001638]
[1728840725606,0.78780846,62822.0,62821.0,0.001638]
[1728840725843,0.85948338,62822.0,62821.0,0.001638]
[1728840726071,0.88337502,62822.0,62821.0,0.001638]
[1728840726333,0.96637502,62822.0,62821.0,0.001638]
[1728840727280,0.95337502,62822.0,62821.0,0.001638]
[1728840728190,0.96137502,62822.0,62821.0,0.001638]
[1728840728409,1.07357228,62822.0,62821.0,0.001638]
[1728840729088,1.08157228,62822.0,62821.0,0.001638]
[1728840729304,0.98600572,62822.0,62821.0,0.001638]
[1728840729511,0.97000572,62822.0,62821.0,0.001638]
[1728840729722,0.98100572,62822.0,62821.0,0.001638]
[1728840729964,0.99000572,62822.0,62821.0,0.001638]
[1728840730182,1.08553977,62822.0,62821.0,0.001638]
[1728840730403,1.09953977,62822.0,62821.0,0.001638]
[1728840730611,0.98734251,62822.0,62821.0,0.001638]
[1728840730825,0.97634251,62822.0,62821.0,0.001638]
[1728840732330,0.88080846,62822.0,62821.0,0.001638]
[1728840732757,0.89480846,62822.0,62821.0,0.001638]
[1728840733001,0.99032914,62822.0,62821.0,0.001638]
[1728840733217,1.01526107,62822.0,62821.0,0.001638]
[1728840734324,1.12745833,62822.0,62821.0,0.001638]
[1728840734534,1.01526107,62822.0,62821.0,0.001638]
[1728840734752,1.12745833,62822.0,62821.0,0.001638]
[1728840734973,0.349205,62812.0,62811.0,0.00164]
[1728840735201,0.82652353,62812.0,62811.0,0.00164]
[1728840735412,0.94588582,62812.0,62811.0,0.00164]
[1728840735634,0.85862507,62812.0,62811.0,0.00164]
[1728840736277,0.73926278,62812.0,62811.0,0.00164]
[1728840736495,1.10828747,62812.0,62811.0,0.00164]
[1728840736705,1.13628747,62812.0,62811.0,0.00164]
[1728840736927,1.02409021,62812.0,62811.0,0.00164]
[1728840737144,0.92863249,62812.0,62811.0,0.00164]
[1728840737371,1.04082975,62812.0,62811.0,0.00164]
[1728840737818,0.92863249,62812.0,62811.0,0.00164]
[1728840738769,1.00020972,62812.0,62811.0,0.00164]
[1728840738996,0.52700617,62812.0,62811.0,0.00164]
[1728840739208,0.56762627,62812.0,62811.0,0.00164]
[1728840739893,0.55362627,62812.0,62811.0,0.00164]
[1728840740105,0.53962627,62812.0,62811.0,0.00164]
[1728840740319,0.71299598,62812.0,62811.0,0.00164]
[1728840740758,0.72699598,62812.0,62811.0,0.00164]
[1728840742325,0.75193243,62812.0,62811.0,0.00164]
[1728840742556,0.86412969,62812.0,62811.0,0.00164]
[1728840743217,1.36412969,62812.0,62811.0,0.00164]
[1728840743425,1.25193243,62812.0,62811.0,0.00164]
[1728840744728,1.13973517,62812.0,62811.0,0.00164]
[1728840744948,1.25193243,62812.0,62811.0,0.00164]
[1728840749528,1.36412969,62812.0,62811.0,0.00164]
[1728840749955,1.33919324,62812.0,62811.0,0.00164]
[1728840750859,1.22699598,62812.0,62811.0,0.00164]
[1728840751520,1.33919324,62812.0,62811.0,0.00164]
[1728840754468,1.36413016,62812.0,62811.0,0.00164]
[1728840756365,1.45523016,62812.0,62811.0,0.00164]
[1728840756577,1.53613016,62812.0,62811.0,0.00164]
[1728840758099,1.52213016,62812.0,62811.0,0.00164]
[1728840758335,1.77413016,62812.0,62811.0,0.00164]
[1728840758958,1.78813016,62812.0,62811.0,0.00164]
[1728840759167,1.83584724,62812.0,62811.0,0.00164]
[1728840759615,1.78813016,62812.0,62811.0,0.00164]
[1728840760028,1.76319324,62812.0,62811.0,0.00164]
[1728840761728,1.8347704,62812.0,62811.0,0.00164]
[1728840762178,1.5867704,62812.0,62811.0,0.00164]
[1728840763055,1.60970816,62812.0,62811.0,0.00164]
[1728840765302,1.85970816,62812.0,62811.0,0.00164]
[1728840765516,1.788131,62812.0,62811.0,0.00164]
[1728840766168,1.538131,62812.0,62811.0,0.00164]
[1728840766374,1.63355805,62812.0,62811.0,0.00164]
[1728840766585,1.538131,62812.0,62811.0,0.00164]
[1728840766800,1.447031,62812.0,62811.0,0.00164]
[1728840767012,1.25393374,62812.0,62811.0,0.00164]
[1728840768289,1.34936079,62812.0,62811.0,0.00164]
[1728840768951,1.25393374,62812.0,62811.0,0.00164]
[1728840769394,1.07579382,62812.0,62811.0,0.00164]
[1728840769618,1.15917384,62812.0,62811.0,0.00164]
[1728840769850,1.06262627,62812.0,62811.0,0.09214]
[1728840770114,1.1103645,62812.0,62811.0,0.09214]
[1728840770334,1.13834,62812.0,62811.0,0.09214]
[1728840770753,1.11537563,62812.0,62811.0,0.09214]
[1728840770966,1.06762627,62812.0,62811.0,0.09214]
[1728840771190,1.13923608,62812.0,62811.0,0.09214]
[1728840773013,1.16417195,62812.0,62811.0,0.09214]
[1728840773239,1.09256214,62812.0,62811.0,0.09214]
[1728840773464,1.3493589,62812.0,62811.0,0.00164]
[1728840773894,1.25393185,62812.0,62811.0,0.00164]
[1728840774318,1.3493589,62812.0,62811.0,0.00164]
[1728840775161,1.25393185,62812.0,62811.0,0.00164]
[1728840775616,1.34951238,62812.0,62811.0,0.00164]
[1728840775822,1.34951231,62812.0,62811.0,0.00164]
[1728840776030,1.25393185,62812.0,62811.0,0.00164]
[1728840776696,1.25393185,62812.0,62811.0,0.17694]
[1728840776697,0.71214087,62812.0,62811.0,0.17694]
[1728840776914,0.528,62812.0,62811.0,0.17694]
[1728840777567,0.528,62812.0,62811.0,0.336147]
[1728840777835,0.5,62812.0,62811.0,0.17694]
[1728840778046,0.511,62812.0,62811.0,0.17694]
[1728840778266,0.513,62812.0,62811.0,0.17694]
[1728840778478,0.514,62812.0,62811.0,0.17694]
[1728840778699,0.62819726,62812.0,62811.0,0.17694]
[1728840779155,0.675205,62812.0,62811.0,0.17694]
[1728840779369,0.62819726,62812.0,62811.0,0.17694]
[1728840779796,0.61519726,62812.0,62811.0,0.17694]
[1728840780224,0.507,62812.0,62811.0,0.17694]
[1728840780462,0.505,62812.0,62811.0,0.336147]
[1728840780685,0.505,62812.0,62811.0,0.359147]
[1728840780908,0.505,62812.0,62811.0,0.391057]
[1728840781362,0.5,62812.0,62811.0,0.391057]
[1728840781552,0.504,62812.0,62811.0,0.391057]
[1728840781766,0.505,62812.0,62811.0,0.391057]
[1728840781984,0.504,62812.0,62811.0,0.391057]
[1728840782201,0.504,62812.0,62811.0,0.393057]
[1728840782424,0.004,62812.0,62811.0,0.393057]
[1728840782643,0.004,62812.0,62811.0,0.391057]
[1728840782878,0.005,62812.0,62811.0,0.393057]
[1728840783112,0.001,62812.0,62811.0,0.393057]
[1728840783845,0.001,62812.0,62811.0,0.395057]
[1728840784293,0.001,62812.0,62811.0,0.393057]
[1728840784722,0.001,62812.0,62811.0,0.395057]
[1728840790948,0.0005,62812.0,62811.0,0.395057]
[1728840791173,0.0001,62812.0,62811.0,0.395057]
[1728840791853,0.00042,62814.0,62813.0,0.159202]
[1728840792071,2e-05,62814.0,62813.0,0.334502]
[1728840792280,0.002,62819.0,62813.0,0.0815]
[1728840792281,0.00192,62819.0,62813.0,0.0815]
[1728840792491,0.00182,62819.0,62818.0,0.15919]
[1728840792699,0.00142,62819.0,62818.0,0.15919]
[1728840792910,0.00102,62819.0,62818.0,0.15919]
[1728840793149,0.00092,62819.0,62818.0,0.15919]
[1728840793376,0.00082,62819.0,62818.0,0.15919]
[1728840793632,0.00252,62819.0,62818.0,0.15919]
[1728840793882,0.00722,62819.0,62818.0,0.15919]
[1728840794104,0.007,62819.0,62818.0,0.15919]
[1728840794348,0.0065,62819.0,62818.0,0.15919]
[1728840794571,0.0062,62819.0,62818.0,0.15919]
[1728840794782,0.0049,62819.0,62818.0,0.15919]
[1728840794998,0.0068,62819.0,62818.0,0.15919]
[1728840795214,0.002,62819.0,62818.0,0.25299]
[1728840795664,0.0029,62819.0,62818.0,0.25399]
[1728840798458,0.00372,62819.0,62818.0,0.25399]
[1728840806398,0.00372,62819.0,62818.0,0.44860475]
[1728840806623,0.00372,62819.0,62818.0,0.46842131]
[1728840806881,0.00372,62819.0,62818.0,0.47340659]
[1728840807557,0.00372,62819.0,62818.0,0.46842131]
[1728840807783,0.00372,62819.0,62818.0,0.47340643]
[1728840808225,0.00372,62819.0,62818.0,0.46842131]
[1728840808698,0.00372,62819.0,62818.0,0.47340638]
[1728840810039,0.00372,62819.0,62818.0,0.47504438]
[1728840811371,0.00372,62819.0,62818.0,0.47005931]
[1728840811585,0.00372,62819.0,62818.0,0.47504432]
[1728840811794,0.00372,62819.0,62818.0,0.50695432]
[1728840812009,0.00372,62819.0,62818.0,0.50196931]
[1728840812240,0.00372,62819.0,62818.0,0.389638]
[1728840812476,0.00372,62819.0,62818.0,0.50096931]
[1728840812477,0.00082,62819.0,62818.0,0.50096931]
[1728840812741,0.00082,62819.0,62818.0,0.50294931]
[1728840812982,0.00182,62819.0,62818.0,0.56182675]
[1728840813216,0.00182,62819.0,62818.0,0.55684675]
[1728840813217,0.00082,62819.0,62818.0,0.55684675]
[1728840813684,0.00182,62819.0,62818.0,0.55984675]
[1728840813921,0.00082,62819.0,62818.0,0.55684675]
[1728840814161,0.00082,62819.0,62818.0,0.55484675]
[1728840814393,0.00182,62819.0,62818.0,0.55684675]
[1728840814857,0.00082,62819.0,62818.0,0.54986201]
[1728840815310,0.00082,62819.0,62818.0,0.55484674]
[1728840815312,0.00182,62819.0,62818.0,0.55684674]
[1728840815540,0.00282,62819.0,62818.0,0.56084674]
[1728840816012,0.00182,62819.0,62818.0,0.55186201]
[1728840816250,0.00282,62819.0,62818.0,0.55586201]
[1728840818152,0.00282,62819.0,62818.0,0.56084674]
[1728840818610,0.00282,62819.0,62818.0,0.55586201]
[1728840818834,0.00282,62819.0,62818.0,0.56084676]
[1728840822338,0.00282,62819.0,62818.0,0.5608468]
[1728840826227,0.00282,62819.0,62818.0,0.56084674]
[1728840827228,0.00282,62819.0,62818.0,0.371638]
[1728840827465,0.00282,62819.0,62818.0,0.007638]
[1728840828272,0.00182,62819.0,62818.0,0.005638]
[1728840829181,0.00182,62819.0,62818.0,0.007638]
[1728840829620,0.00082,62819.0,62818.0,0.003638]
[1728840830106,0.00182,62819.0,62818.0,0.007638]
[1728840830329,0.00182,62819.0,62818.0,0.005638]
[1728840830564,0.00082,62819.0,62818.0,0.001638]
[1728840830811,0.00082,62819.0,62818.0,0.003638]
[1728840831711,0.160007,62819.0,62818.0,0.003638]
[1728840832408,0.00082,62819.0,62818.0,0.003638]
[1728840834281,0.00082,62819.0,62818.0,0.162828]
[1728840835161,0.160007,62819.0,62818.0,0.003638]
[1728840836993,0.00082,62819.0,62818.0,0.003638]
[1728840837444,0.160007,62819.0,62818.0,0.003638]
[1728840837880,0.00082,62819.0,62818.0,0.003638]
[1728840838150,0.00082,62819.0,62818.0,0.162828]
[1728840840550,0.00082,62819.0,62818.0,0.160828]
[1728840840982,0.00182,62819.0,62818.0,0.164828]
[1728840841196,0.00282,62819.0,62818.0,0.166828]
[1728840847236,0.162007,62819.0,62818.0,0.007638]
[1728840848367,0.161007,62819.0,62818.0,0.003638]
[1728840849263,0.161007,62819.0,62818.0,0.001638]
[1728840849502,0.160007,62819.0,62818.0,0.001638]
[1728840849728,0.162007,62819.0,62818.0,0.001638]
[1728840871336,0.27433831,62819.0,62818.0,0.001638]
[1728840875699,0.00282,62819.0,62818.0,0.253328]
[1728840878245,0.00282,62819.0,62818.0,0.352628]
[1728840878501,0.00282,62819.0,62818.0,0.38952323]
[1728840879016,0.00082,62819.0,62818.0,0.38952323]
[1728840879512,0.00082,62819.0,62818.0,0.39152323]
[1728840879767,0.00082,62819.0,62818.0,0.55574724]
[1728840880004,0.00082,62819.0,62818.0,0.55472724]
[1728840880466,0.00082,62819.0,62818.0,0.56072724]
[1728840880467,0.00182,62819.0,62818.0,0.56072724]
[1728840880703,0.00182,62819.0,62818.0,0.55872724]
[1728840880948,0.00282,62819.0,62818.0,0.55874724]
[1728840881972,0.00282,62819.0,62818.0,0.56072724]
[1728840883772,0.00282,62819.0,62818.0,0.55874724]
[1728840885660,0.00282,62819.0,62818.0,0.55376201]
[1728840898399,0.00282,62819.0,62818.0,0.55874675]
[1728840904690,0.00282,62819.0,62818.0,0.55874677]
[1728840905350,0.00282,62819.0,62818.0,0.55376201]
[1728840905573,0.00282,62819.0,62818.0,0.57564047]
[1728840905808,0.00282,62819.0,62818.0,0.57065571]
[1728840911268,0.00282,62819.0,62818.0,0.55874675]
[1728840911490,0.00282,62819.0,62818.0,0.57067119]
[1728840911915,0.00282,62819.0,62818.0,0.55376201]
[1728840912151,0.00282,62819.0,62818.0,0.57067104]
[1728840912556,0.00282,62819.0,62818.0,0.24064703]
[1728840913017,0.00282,62819.0,62818.0,0.22872273]
[1728840914952,0.00282,62819.0,62818.0,0.22872308]
[1728840926254,0.00282,62819.0,62818.0,0.223738]
[1728840926474,0.00282,62819.0,62818.0,0.22872307]
[1728840929142,0.00282,62819.0,62818.0,0.39191517]
[1728840929401,0.00282,62819.0,62818.0,0.68477839]
[1728840929617,0.00282,62819.0,62818.0,0.867622]
[1728840930298,0.00282,62819.0,62818.0,0.86761967]
[1728840930512,0.00282,62819.0,62818.0,0.96761967]
[1728840930731,0.00282,62819.0,62818.0,0.96959967]
[1728840930961,0.00282,62819.0,62818.0,1.11065211]
[1728840931412,0.00282,62819.0,62818.0,1.11263211]
[1728840931665,0.00282,62819.0,62818.0,0.96761967]
[1728840932078,0.00282,62819.0,62818.0,0.96959967]
[1728840932525,0.00282,62819.0,62818.0,0.96761967]
[1728840933176,0.00282,62819.0,62818.0,0.96959967]
[1728840933407,0.00282,62819.0,62818.0,0.97934171]
[1728840934071,0.00282,62819.0,62818.0,0.97932883]
[1728840936494,0.00282,62819.0,62818.0,0.98130883]
[1728840938640,0.00282,62819.0,62818.0,0.97932883]
[1728840940612,0.00282,62819.0,62818.0,1.04310783]
[1728840940821,0.00182,62819.0,62818.0,1.04110783]
[1728840941251,0.00082,62819.0,62818.0,1.03510783]
[1728840941526,0.00182,62819.0,62818.0,1.04109346]
[1728840942172,0.00282,62819.0,62818.0,1.05409346]
[1728840942831,0.00182,62819.0,62818.0,1.04109346]
[1728840943056,0.00282,62819.0,62818.0,1.05409346]
[1728840945330,0.00282,62819.0,62818.0,1.05409202]
[1728840945550,0.00282,62819.0,62818.0,1.05409194]
[1728840948972,0.00282,62819.0,62818.0,1.05409248]
[1728840951471,0.00282,62819.0,62818.0,1.17295436]
[1728840952573,0.00282,62819.0,62818.0,1.1607945]
[1728840952789,0.00282,62819.0,62818.0,1.17268297]
[1728840956917,0.00282,62819.0,62818.0,1.17269109]
[1728840957141,0.00282,62819.0,62818.0,0.98125978]
[1728840957381,0.00282,62819.0,62818.0,0.3848586]
[1728840957611,0.00282,62819.0,62818.0,0.37296201]
[1728840958328,0.00082,62819.0,62818.0,0.35396201]
[1728840958575,0.00182,62819.0,62818.0,0.36696201]
[1728840958804,0.00282,62819.0,62818.0,0.38096201]
[1728840959281,0.00082,62819.0,62818.0,0.215738]
[1728840959535,0.08262,62819.0,62818.0,0.215738]
[1728840959994,0.08262,62819.0,62818.0,0.226738]
[1728840959995,0.08362,62819.0,62818.0,0.226738]
[1728840960951,0.08362,62819.0,62818.0,0.237738]
[1728840961196,0.08462,62819.0,62818.0,0.237738]
[1728840961418,0.08362,62819.0,62818.0,0.226738]
[1728840961647,0.08262,62819.0,62818.0,0.215738]
[1728840961885,0.08462,62819.0,62818.0,0.231738]
[1728840969438,0.243807,62819.0,62818.0,0.049548]
[1728840969710,0.336107,62819.0,62818.0,0.017638]
[1728840970381,0.60966232,62819.0,62818.0,0.017638]
[1728840970599,0.77303203,62819.0,62818.0,0.009638]
[1728840970832,0.77303203,62819.0,62803.0,0.55887222]
[1728840970833,0.159205,62812.0,62803.0,0.24042122]
[1728840971066,0.44563631,62812.0,62803.0,0.24042122]
[1728840971282,0.60686032,62812.0,62803.0,0.24042122]
[1728840971501,0.87023003,62812.0,62803.0,0.24042122]
[1728840971927,0.87023003,62812.0,62811.0,0.00264]
[1728840971928,0.87423003,62812.0,62811.0,0.00264]
[1728840972410,0.86823003,62812.0,62811.0,0.00164]
[1728840972892,0.91016682,62812.0,62811.0,0.00364]
[1728840973102,0.90116682,62812.0,62811.0,0.00264]
[1728840973316,0.90316682,62812.0,62811.0,0.00264]
[1728840973568,0.90316682,62812.0,62811.0,0.00364]
[1728840973569,0.91216682,62812.0,62811.0,0.00364]
[1728840973782,0.91416682,62812.0,62811.0,0.00364]
[1728840974016,0.90616682,62812.0,62811.0,0.00264]
[1728840974265,0.91616682,62812.0,62811.0,0.00364]
[1728840974772,0.90616682,62812.0,62811.0,0.00264]
[1728840975019,0.91716682,62812.0,62811.0,0.00364]
[1728840975714,1.02349813,62812.0,62811.0,0.00264]
[1728840976002,1.02349813,62812.0,62801.0,0.0005]
[1728840976003,0.002,62804.0,62801.0,0.0005]
[1728840976186,0.44536131,62802.0,62801.0,0.0005]
[1728840976406,0.60458532,62802.0,62801.0,0.0005]
[1728840976637,0.6295251,62802.0,62801.0,0.0005]
[1728840976859,0.97494632,62802.0,62801.0,0.0005]
[1728840977077,0.7855635,62802.0,62801.0,0.0005]
[1728840977809,0.159248,62795.0,62794.0,0.00064]